bitfinex/quotes_SOLUSD_20241127
["timestamp","ask_amount","ask_price","bid_price","bid_amount"]
[1732675162411,3.0129,232.34,232.31,0.66428394]
[1732675163716,13.38519692,232.37,232.33,0.66428394]
[1732675164428,16.39769692,232.37,232.33,0.66428394]
[1732675165037,3.0122,232.39,232.35,0.66428394]
[1732675165626,3.0122,232.39,232.31,13.38519692]
[1732675165627,16.39739692,232.39,232.33,0.66428394]
[1732675165805,16.39739692,232.39,232.31,13.38519692]
[1732675165806,16.39739692,232.39,232.36,0.66428394]
[1732675166324,16.39739692,232.39,232.32,0.66428394]
[1732675166629,13.38519692,232.37,232.32,0.66428394]
[1732675166847,6.74986237,232.47,232.32,0.66428394]
[1732675166848,0.5214458,232.89,232.48,0.66428394]
[1732675167130,0.5214458,232.89,232.86,0.66428394]
[1732675167131,1.56063042,232.88,232.86,0.66428394]
[1732675167502,11.18239656,233.04,232.87,35.04939888]
[1732675167728,13.38519692,232.88,232.87,35.04939888]
[1732675167916,13.38519692,232.88,232.87,75.92311727]
[1732675168104,13.52819692,232.88,232.87,75.92311727]
[1732675168302,13.52819692,232.88,232.87,114.75426451]
[1732675168303,0.143,232.88,232.87,114.75426451]
[1732675168508,9.9391434,232.96,232.89,5.0]
[1732675168833,21.27946807,232.94,232.9,84.55875903]
[1732675169440,1.92720093,232.94,232.91,84.70486563]
[1732675169607,21.27946807,232.95,232.91,84.70486563]
[1732675170040,21.27946807,232.93,232.91,79.70486563]
[1732675170213,21.27946807,232.93,232.92,40.87371839]
[1732675170519,44.70543614,232.93,232.92,79.70486563]
[1732675170730,23.42596807,232.93,232.92,79.70486563]
[1732675171019,68.48232014,232.93,232.92,79.70486563]
[1732675171245,68.48232014,232.93,232.92,77.03476563]
[1732675171422,47.20285207,232.93,232.92,120.71980627]
[1732675171624,47.20285207,232.93,232.92,168.72039013]
[1732675172113,68.48232014,232.93,232.92,168.72039013]
[1732675172709,47.20285207,232.93,232.92,168.72039013]
[1732675172910,68.48232014,232.93,232.92,168.72039013]
[1732675173333,47.20285207,232.93,232.92,168.72039013]
[1732675173536,21.27946807,232.93,232.92,168.72039013]
[1732675173737,20.0,233.01,232.92,168.72039013]
[1732675173916,21.27946807,232.93,232.92,86.8317311]
[1732675174117,21.27946807,232.93,232.92,138.50198224]
[1732675174935,23.42596807,232.93,232.92,138.50198224]
[1732675175126,44.70543614,232.93,232.92,131.38278224]
[1732675175833,44.70543614,232.93,232.92,99.670835]
[1732675176417,44.70543614,232.93,232.92,51.67025114]
[1732675176637,20.0,232.9,232.83,5.0]
[1732675176944,21.27946807,232.86,232.83,5.0]
[1732675177147,21.27946807,232.88,232.83,5.0]
[1732675177441,21.27946807,232.89,232.83,5.0]
[1732675177733,21.27946807,232.89,232.85,5.0]
[1732675177911,21.27946807,232.9,232.85,5.0]
[1732675178119,21.27946807,232.93,232.86,21.27946807]
[1732675178545,20.0,232.9,232.85,10.0]
[1732675178925,2.1469,232.89,232.85,10.0]
[1732675179610,21.27946807,232.89,232.83,10.0]
[1732675179835,21.27946807,232.89,232.83,5.0]
[1732675180018,21.27946807,232.89,232.84,5.0]
[1732675180222,21.27946807,232.89,232.83,5.0]
[1732675180426,21.27946807,232.89,232.84,5.0]
[1732675180836,21.27946807,232.85,232.79,5.0]
[1732675181171,21.27946807,232.82,232.77,5.0]
[1732675181524,21.27946807,232.83,232.78,5.0]
[1732675181728,21.27946807,232.84,232.78,5.0]
[1732675182216,21.27946807,232.84,232.77,26.27946807]
[1732675182417,1.7179,232.83,232.77,31.27946807]
[1732675182729,22.99736807,232.83,232.77,10.0]
[1732675183042,21.27946807,232.8,232.75,10.0]
[1732675183821,21.27946807,232.8,232.75,5.0]
[1732675184220,1.7182,232.79,232.75,10.0]
[1732675184625,1.7182,232.79,232.75,5.0]
[1732675184828,1.7182,232.79,232.75,10.0]
[1732675185724,1.7182,232.79,232.74,6.5456]
[1732675186242,1.7182,232.79,232.75,5.0]
[1732675187245,1.7182,232.79,232.74,6.5456]
[1732675187434,21.27946807,232.77,232.74,6.5456]
[1732675187747,21.27946807,232.77,232.71,16.7012]
[1732675187748,21.27946807,232.77,232.71,5.0]
[1732675188936,21.27946807,232.73,232.67,5.0]
[1732675189142,21.27946807,232.7,232.67,5.0]
[1732675189322,21.27946807,232.68,232.66,6.2778]
[1732675189738,22.99846807,232.69,232.65,174.32289855]
[1732675189944,21.27946807,232.68,232.65,174.32289855]
[1732675190354,22.99846807,232.69,232.65,174.32289855]
[1732675190843,22.99846807,232.69,232.65,179.32289855]
[1732675191051,22.99846807,232.69,232.65,174.32289855]
[1732675191237,1.719,232.69,232.67,5.0]
[1732675191633,1.719,232.69,232.67,26.27946807]
[1732675191844,1.7185,232.76,232.72,5.0]
[1732675192031,1.7185,232.76,232.72,10.0]
[1732675192350,1.7185,232.76,232.72,5.0]
[1732675192723,22.99796807,232.76,232.72,5.0]
[1732675195448,1.7185,232.76,232.72,5.0]
[1732675197153,1.7185,232.76,232.7,10.0]
[1732675197355,1.7185,232.76,232.72,5.0]
[1732675197950,21.27946807,232.75,232.72,5.0]
[1732675198539,21.27946807,232.75,232.7,10.0]
[1732675198747,21.27946807,232.75,232.72,5.0]
[1732675198943,1.7186,232.74,232.72,5.0]
[1732675199133,1.7186,232.74,232.7,5.0]
[1732675199134,21.27946807,232.73,232.7,5.0]
[1732675199334,21.27946807,232.73,232.68,5.0]
[1732675200144,21.27946807,232.71,232.7,5.0]
[1732675200336,21.27946807,232.73,232.71,5.0]
[1732675200532,1.2889,232.74,232.71,10.0]
[1732675200754,1.2889,232.74,232.71,5.0]
[1732675200934,21.27946807,232.73,232.69,5.0]
[1732675201246,1.2891,232.72,232.69,5.0]
[1732675201445,1.2891,232.72,232.71,10.0]
[1732675201644,21.27946807,232.75,232.71,10.0]
[1732675201645,22.56836807,232.75,232.74,5.0]
[1732675202455,22.56836807,232.75,232.71,10.0]
[1732675202761,1.2889,232.75,232.74,10.0]
[1732675203536,1.2889,232.75,232.74,5.0]
[1732675203732,21.27946807,232.77,232.74,5.0]
[1732675204353,21.27946807,232.77,232.75,5.0]
[1732675205430,1.2888,232.76,232.75,5.0]
[1732675206152,4.44859367,232.76,232.75,5.0]
[1732675206748,17.76283475,232.76,232.75,5.0]
[1732675208357,22.83855024,232.76,232.75,5.0]
[1732675208659,9.52430916,232.76,232.75,5.0]
[1732675208841,4.44859367,232.76,232.75,5.0]
[1732675209257,9.52430916,232.76,232.74,5.0]
[1732675209569,1.2888,232.76,232.75,5.0]
[1732675209744,9.55759027,232.76,232.75,5.0]
[1732675210260,9.55759027,232.76,232.74,5.0]
[1732675210261,8.28836287,232.76,232.74,2.25322504]
[1732675210558,8.28836287,232.75,232.74,2.25322504]
[1732675210973,3.18783187,232.75,232.74,2.25322504]
[1732675211264,8.28836287,232.75,232.74,2.25322504]
[1732675212070,9.57726287,232.75,232.74,2.25322504]
[1732675212954,4.93270547,232.82,232.73,6.2595]
[1732675212955,1.2886,232.81,232.78,2.25322504]
[1732675213144,1.2886,232.81,232.8,2.25322504]
[1732675213960,1.2884,232.83,232.8,2.25322504]
[1732675214773,14.60264108,232.83,232.8,2.25322504]
[1732675215267,13.31424108,232.84,232.8,2.25322504]
[1732675215443,20.0,232.82,232.8,2.25322504]
[1732675215646,13.31424108,232.82,232.8,2.25322504]
[1732675217355,20.0,232.78,232.67,6.2595]
[1732675217552,13.31424108,232.77,232.67,6.2595]
[1732675217867,20.0,232.78,232.68,13.31424108]
[1732675218062,13.31424108,232.79,232.72,13.31424108]
[1732675218263,24.5092,232.85,232.74,13.31424108]
[1732675218468,13.31424108,232.83,232.75,13.31424108]
[1732675218771,13.31424108,232.84,232.77,13.31424108]
[1732675220158,13.31424108,232.84,232.76,13.31424108]
[1732675220749,4.5096,232.83,232.76,13.31424108]
[1732675221467,4.5096,232.83,232.77,23.776884]
[1732675222163,13.31424108,232.82,232.77,23.776884]
[1732675222371,13.31424108,232.82,232.75,23.776884]
[1732675222776,13.31424108,232.8,232.75,23.776884]
[1732675223074,13.31424108,232.79,232.72,13.31424108]
[1732675223243,13.31424108,232.8,232.74,23.776884]
[1732675223443,13.31424108,232.79,232.74,23.776884]
[1732675223668,13.31424108,232.79,232.73,23.776884]
[1732675223879,13.31424108,232.79,232.72,23.776884]
[1732675224884,1.2887,232.78,232.72,37.09112508]
[1732675225556,1.2887,232.78,232.73,13.31424108]
[1732675225875,1.2887,232.78,232.72,23.776884]
[1732675226380,13.31424108,232.75,232.69,23.776884]
[1732675226568,13.31424108,232.74,232.67,19.57374108]
[1732675226769,13.31424108,232.71,232.67,6.2595]
[1732675226973,13.31424108,232.69,232.65,174.32289855]
[1732675227863,4.5122,232.7,232.65,174.32289855]
[1732675228862,13.31424108,232.68,232.65,174.32289855]
[1732675229066,13.31424108,232.66,232.65,174.32289855]
[1732675229465,14.60354108,232.67,232.65,174.32289855]
[1732675229983,1.2893,232.67,232.65,174.32289855]
[1732675230859,14.60354108,232.67,232.65,174.32289855]
[1732675231056,13.31424108,232.66,232.65,174.32289855]
[1732675231373,13.31424108,232.66,232.65,171.90119855]
[1732675231758,14.60354108,232.67,232.65,171.90119855]
[1732675232173,13.31424108,232.66,232.65,171.90119855]
[1732675234383,13.31424108,232.67,232.65,171.90119855]
[1732675235563,13.31424108,232.66,232.65,171.90119855]
[1732675235887,13.31424108,232.68,232.65,171.90119855]
[1732675236188,13.31424108,232.66,232.65,171.90119855]
[1732675236480,13.31424108,232.67,232.65,171.90119855]
[1732675236872,13.31424108,232.66,232.65,167.41079855]
[1732675237072,13.31424108,232.66,232.65,164.88439855]
[1732675237382,20.0,232.63,232.55,8.3501458]
[1732675237576,13.31424108,232.57,232.55,0.5214458]
[1732675237780,13.31424108,232.59,232.55,0.5214458]
[1732675238174,13.31424108,232.58,232.55,0.5214458]
[1732675238687,13.31424108,232.59,232.55,0.5214458]
[1732675239064,13.31424108,232.58,232.55,0.5214458]
[1732675239784,13.31424108,232.57,232.55,0.5214458]
[1732675239987,14.60414108,232.57,232.55,0.5214458]
[1732675240490,13.31424108,232.56,232.55,0.5214458]
[1732675241170,13.31424108,232.56,232.55,4.58e-05]
[1732675242374,13.31424108,232.56,232.45,25.8309]
[1732675242375,4.5151,232.55,232.45,25.8309]
[1732675242572,13.31424108,232.51,232.45,25.8309]
[1732675242884,13.31424108,232.46,232.39,39.14514108]
[1732675243090,13.31424108,232.45,232.39,25.8309]
[1732675243390,13.31424108,232.43,232.39,25.8309]
[1732675243684,13.31424108,232.43,232.39,7.1616]
[1732675243886,1.2907,232.42,232.39,7.1616]
[1732675244091,20.0,232.23,232.22,1.63606794]
[1732675244278,20.0,232.23,232.01,18.6693]
[1732675244279,13.31424108,232.23,232.09,13.83568688]
[1732675244483,23.31424108,232.32,232.09,13.83568688]
[1732675244484,13.31424108,232.19,232.09,13.83568688]
[1732675245396,13.31424108,232.17,232.09,0.5214458]
[1732675245568,5.64540321,232.29,232.09,0.5214458]
[1732675245569,13.31424108,232.15,232.09,0.5214458]
[1732675245773,13.31424108,232.2,232.09,0.5214458]
[1732675245774,13.31424108,232.11,232.09,0.5214458]
[1732675246084,14.60674108,232.11,232.09,0.5214458]
[1732675246285,21.41934251,232.14,232.09,0.5214458]
[1732675246489,21.41934251,232.14,232.01,18.6693]
[1732675246490,21.41934251,232.14,232.04,21.41934251]
[1732675247477,1.2923,232.13,232.04,21.41934251]
[1732675247865,21.41934251,232.12,232.05,23.776884]
[1732675248086,21.41934251,232.12,232.04,21.41934251]
[1732675248590,22.71174251,232.12,232.04,21.41934251]
[1732675251800,22.06474572,232.18,232.11,21.41934251]
[1732675251968,21.41934251,232.18,232.11,21.41934251]
[1732675252288,21.41934251,232.19,232.12,21.41934251]
[1732675252493,21.41934251,232.18,232.1,21.41934251]
[1732675252869,21.41934251,232.17,232.1,21.41934251]
[1732675253166,21.41934251,232.14,232.07,21.41934251]
[1732675253791,21.41934251,232.15,232.08,21.41934251]
[1732675253993,22.71154251,232.16,232.08,21.41934251]
[1732675254172,21.41934251,232.15,232.08,21.41934251]
[1732675254375,22.71164251,232.15,232.08,21.41934251]
[1732675254694,21.41934251,232.21,232.13,21.41934251]
[1732675254895,21.41934251,232.19,232.12,21.41934251]
[1732675255289,21.41934251,232.18,232.1,21.41934251]
[1732675255495,1.2921,232.17,232.11,21.41934251]
[1732675255793,1.2921,232.17,232.13,21.41934251]
[1732675256173,1.2921,232.17,232.12,21.41934251]
[1732675257198,21.41934251,232.21,232.14,21.41934251]
[1732675257606,21.41934251,232.22,232.15,21.41934251]
[1732675257983,21.41934251,232.2,232.13,29.04134251]
[1732675258298,21.41934251,232.2,232.13,7.622]
[1732675258494,21.41934251,232.19,232.13,7.622]
[1732675258796,3.2289,232.28,232.14,21.41934251]
[1732675258797,21.41934251,232.21,232.14,21.41934251]
[1732675258986,22.71114251,232.22,232.15,21.41934251]
[1732675259189,21.41934251,232.21,232.14,21.41934251]
[1732675259504,21.41934251,232.2,232.13,29.04134251]
[1732675259878,21.41934251,232.21,232.14,21.41934251]
[1732675260278,21.41934251,232.22,232.14,21.41934251]
[1732675260684,21.41934251,232.21,232.14,21.41934251]
[1732675262274,22.71124251,232.21,232.14,21.41934251]
[1732675262996,21.41934251,232.15,232.13,7.622]
[1732675263204,21.41934251,232.14,232.07,7.5277]
[1732675263393,0.64540321,232.19,232.08,21.41934251]
[1732675263595,1.2919,232.21,232.07,7.5277]
[1732675263903,1.2919,232.21,232.08,5.64603331]
[1732675264105,1.2917,232.25,232.09,4.3086]
[1732675264292,1.2917,232.25,232.13,19.9008]
[1732675264493,1.2917,232.25,232.14,23.776884]
[1732675264800,21.41934251,232.2,232.14,23.776884]
[1732675265206,1.2917,232.25,232.13,19.9008]
[1732675265207,21.41934251,232.17,232.13,19.9008]
[1732675265506,21.41934251,232.16,232.09,21.41934251]
[1732675265805,5.16630321,232.25,232.09,21.41934251]
[1732675265806,21.41934251,232.17,232.09,21.41934251]
[1732675265989,21.41934251,232.17,232.1,21.41934251]
[1732675266185,22.71134251,232.19,232.12,21.41934251]
[1732675266386,22.71134251,232.19,232.1,4.3084]
[1732675266387,13.38012431,232.18,232.11,13.38012431]
[1732675266602,13.38012431,232.18,232.11,33.38012431]
[1732675266914,13.38012431,232.17,232.11,20.0]
[1732675268487,13.38012431,232.21,232.14,13.38012431]
[1732675269108,13.38012431,232.22,232.15,13.38012431]
[1732675269688,13.38012431,232.23,232.16,13.38012431]
[1732675270106,13.38012431,232.22,232.15,20.0]
[1732675270302,13.38012431,232.21,232.14,4.3075]
[1732675270483,13.38012431,232.2,232.13,13.38012431]
[1732675271102,13.38012431,232.2,232.13,17.68792431]
[1732675271610,13.38012431,232.21,232.13,17.68792431]
[1732675271912,13.38012431,232.22,232.14,13.38012431]
[1732675272204,13.38012431,232.22,232.14,17.68772431]
[1732675272510,13.38012431,232.23,232.15,13.38012431]
[1732675273090,13.38012431,232.23,232.15,33.38012431]
[1732675274094,13.38012431,232.22,232.15,20.0]
[1732675274980,13.38012431,232.18,232.1,85.88012431]
[1732675275488,13.38012431,232.18,232.11,13.38012431]
[1732675275685,13.38012431,232.15,232.08,13.38012431]
[1732675275898,13.38012431,232.13,232.07,27.4285]
[1732675276113,13.38012431,232.12,232.07,7.5277]
[1732675277207,13.38012431,232.12,232.04,4.3095]
[1732675277208,13.38012431,232.12,232.04,13.38012431]
[1732675277415,13.38012431,232.08,232.02,27.4285]
[1732675277600,13.38012431,232.04,231.97,7.5277]
[1732675277807,13.38012431,232.04,231.97,20.90782431]
[1732675277985,13.38012431,232.03,231.97,7.5277]
[1732675278307,13.38012431,232.02,231.97,7.5277]
[1732675278506,13.38012431,232.03,231.97,7.5277]
[1732675280092,3.2314,232.1,232.02,13.38012431]
[1732675280093,13.38012431,232.1,232.02,13.38012431]
[1732675280297,13.38012431,232.11,232.03,13.38012431]
[1732675280611,13.38012431,232.11,232.04,13.38012431]
[1732675281709,1.2923,232.13,232.0,13.38012431]
[1732675281710,13.38012431,232.07,232.0,13.38012431]
[1732675281894,13.38012431,232.04,231.97,7.5277]
[1732675282299,22.73068053,232.04,231.97,28.96548053]
[1732675282786,21.43778053,232.05,231.98,21.43778053]
[1732675283499,21.43778053,232.08,232.01,21.43778053]
[1732675283694,21.43778053,232.09,232.02,21.43778053]
[1732675285517,22.73028053,232.1,232.02,21.43778053]
[1732675287010,21.43778053,232.1,232.02,25.74768053]
[1732675287397,21.43778053,232.1,232.03,21.43778053]
[1732675287603,21.43778053,232.12,232.05,21.43778053]
[1732675287791,22.73018053,232.13,232.05,21.43778053]
[1732675287993,0.64540321,232.18,232.09,21.43778053]
[1732675287994,21.43778053,232.16,232.09,21.43778053]
[1732675288215,21.43778053,232.17,232.1,21.43778053]
[1732675288895,21.43778053,232.18,232.1,21.43778053]
[1732675289093,21.43778053,232.17,232.1,21.43778053]
[1732675289914,1.292,232.19,232.08,21.43778053]
[1732675289915,21.43778053,232.16,232.08,21.43778053]
[1732675290212,21.43778053,232.15,232.08,21.43778053]
[1732675290419,21.43778053,232.14,232.07,21.43778053]
[1732675290638,21.43778053,232.15,232.08,21.43778053]
[1732675290790,21.43778053,232.16,232.09,21.43778053]
[1732675290995,21.43778053,232.17,232.1,21.43778053]
[1732675291408,22.72988053,232.17,232.1,21.43778053]
[1732675291622,21.43778053,232.16,232.09,21.43778053]
[1732675292512,21.43778053,232.16,232.08,25.74658053]
[1732675292895,21.43778053,232.16,232.09,21.43778053]
[1732675293097,22.72988053,232.17,232.1,21.43778053]
[1732675294797,2.29443075,232.21,232.11,21.43778053]
[1732675294798,21.43778053,232.19,232.11,21.43778053]
[1732675295324,21.43778053,232.19,232.12,12.98053219]
[1732675295623,21.43778053,232.19,232.11,21.43778053]
[1732675295810,21.43778053,232.19,232.11,34.41831272]
[1732675296121,21.43778053,232.21,232.12,12.98053219]
[1732675296415,21.43778053,232.21,232.11,4.3081]
[1732675296416,22.72948053,232.25,232.17,21.43778053]
[1732675296596,3.20812468,232.24,232.17,21.43778053]
[1732675296920,22.72948053,232.25,232.17,21.43778053]
[1732675297419,21.43778053,232.26,232.18,21.43778053]
[1732675298426,21.43778053,232.21,232.13,34.41831272]
[1732675298617,21.43778053,232.19,232.14,20.0]
[1732675298801,21.43778053,232.21,232.14,41.43778053]
[1732675299402,21.43778053,232.2,232.14,20.0]
[1732675300118,21.43778053,232.17,232.1,8.9819]
[1732675300617,21.43778053,232.17,232.1,13.2903]
[1732675300927,21.43778053,232.21,232.13,21.43778053]
[1732675302034,21.43778053,232.2,232.13,21.43778053]
[1732675302233,22.72968053,232.21,232.13,21.43778053]
[1732675302527,14.67084989,232.21,232.13,13.37894989]
[1732675303501,13.37894989,232.19,232.12,13.37894989]
[1732675304726,13.37894989,232.19,232.12,17.68694989]
[1732675304923,14.67084989,232.2,232.13,13.37894989]
[1732675305419,14.67084989,232.2,232.11,13.37894989]
[1732675305420,13.37894989,232.19,232.11,13.37894989]
[1732675305619,13.37894989,232.18,232.11,13.37894989]
[1732675306233,13.37894989,232.16,232.09,13.37894989]
[1732675306521,1.2919,232.2,232.07,13.37894989]
[1732675306522,14.67124989,232.14,232.07,13.37894989]
[1732675310120,14.67124989,232.14,232.06,20.0]
[1732675310319,14.67124989,232.14,232.05,13.37894989]
[1732675310810,14.67134989,232.12,232.03,13.37894989]
[1732675311010,14.67134989,232.12,232.03,17.68864989]
[1732675311707,13.37894989,232.1,232.01,17.68894989]
[1732675311915,13.37894989,232.08,232.01,13.37894989]
[1732675312209,13.37894989,232.02,231.93,36.12954989]
[1732675312541,13.37894989,232.0,231.92,13.37894989]
[1732675312721,13.37894989,232.0,231.92,17.69074989]
[1732675313422,14.67204989,232.0,231.92,17.69074989]
[1732675313831,14.67204989,232.0,231.92,13.37894989]
[1732675315711,13.37894989,231.97,231.89,17.69114989]
[1732675315918,13.37894989,231.97,231.89,13.37894989]
[1732675316828,1.2931,232.0,231.86,0.5214458]
[1732675316829,13.37894989,231.95,231.86,0.5214458]
[1732675317141,13.37894989,231.95,231.8,77.5]
[1732675317142,13.37894989,231.88,231.8,13.37894989]
[1732675317339,13.37894989,231.9,231.82,13.37894989]
[1732675317719,0.64540321,231.94,231.84,13.37894989]
[1732675317720,1.2936,231.91,231.84,13.37894989]
[1732675318046,13.37894989,231.89,231.82,13.37894989]
[1732675318426,14.67254989,231.91,231.83,13.37894989]
[1732675319120,14.67244989,231.93,231.85,13.37894989]
[1732675319325,13.37894989,231.92,231.84,13.37894989]
[1732675319937,14.67244989,231.92,231.84,13.37894989]
[1732675320143,1.2934,231.94,231.87,13.37894989]
[1732675322344,14.67234989,231.94,231.87,13.37894989]
[1732675322741,14.67224989,231.96,231.88,13.37894989]
[1732675323843,14.67234989,231.95,231.88,13.37894989]
[1732675325219,13.37894989,231.95,231.88,13.37894989]
[1732675325844,13.37894989,232.0,231.93,13.37894989]
[1732675326145,13.37894989,232.03,231.96,13.37894989]
[1732675326348,14.67184989,232.04,231.97,13.37894989]
[1732675326529,13.37894989,232.05,231.98,13.37894989]
[1732675326945,13.37894989,232.02,231.95,13.37894989]
[1732675327141,13.37894989,232.02,231.96,13.37894989]
[1732675327339,13.37894989,232.04,231.97,13.37894989]
[1732675327834,13.37894989,232.04,231.96,13.37894989]
[1732675327835,13.37894989,232.03,231.96,13.37894989]
[1732675328041,13.37894989,232.02,231.95,13.37894989]
[1732675328346,13.37894989,232.04,231.97,13.37894989]
[1732675328730,13.37894989,232.05,231.98,13.37894989]
[1732675329337,13.37894989,232.03,231.96,13.37894989]
[1732675329548,13.37894989,232.02,231.95,13.37894989]
[1732675329736,13.37894989,232.04,231.96,13.37894989]
[1732675330051,13.37894989,232.04,231.97,13.37894989]
[1732675331265,13.37894989,232.05,231.98,13.37894989]
[1732675331450,13.37894989,232.04,231.97,13.37894989]
[1732675331634,13.37894989,232.04,231.96,13.37894989]
[1732675331840,14.67164989,232.06,231.98,13.37894989]
[1732675332055,13.37894989,232.06,231.98,13.37894989]
[1732675332235,14.67164989,232.07,232.0,13.37894989]
[1732675332435,13.37894989,232.06,231.99,13.37894989]
[1732675333054,14.67174989,232.06,231.99,13.37894989]
[1732675333237,1.2928,232.06,232.0,13.37894989]
[1732675334726,1.2928,232.06,231.98,13.37894989]
[1732675334727,14.67174989,232.06,231.98,13.37894989]
[1732675335127,14.67174989,232.06,231.99,13.37894989]
[1732675335730,13.37894989,232.04,231.95,13.37894989]
[1732675335937,13.37894989,232.01,231.94,33.37894989]
[1732675337847,14.67194989,232.01,231.94,13.37894989]
[1732675338036,13.37894989,231.99,231.92,13.37894989]
[1732675338237,13.37894989,231.99,231.9,13.37894989]
[1732675338443,1.293,232.01,231.89,13.37894989]
[1732675338444,13.37894989,231.96,231.89,13.37894989]
[1732675338952,1.293,232.01,231.85,9.0928]
[1732675338953,13.37894989,231.94,231.85,9.0928]
[1732675339252,13.37894989,231.96,231.88,13.37894989]
[1732675340036,13.37894989,231.96,231.89,13.37894989]
[1732675340343,38.10754989,231.99,231.92,13.37894989]
[1732675340543,1.2931,232.0,231.94,13.37894989]
[1732675341052,1.70510135,232.03,231.96,13.37894989]
[1732675341053,14.67184989,232.03,231.96,13.37894989]
[1732675341554,26.0214,232.05,231.98,13.37894989]
[1732675343155,13.37894989,232.04,231.96,13.37894989]
[1732675343364,13.37894989,232.0,231.93,13.37894989]
[1732675343653,26.0214,232.05,231.85,19.8755]
[1732675343654,13.37894989,231.98,231.9,13.37894989]
[1732675343862,13.37894989,231.99,231.91,13.37894989]
[1732675344059,13.37894989,231.98,231.91,13.37894989]
[1732675344235,13.37894989,231.97,231.9,13.37894989]
[1732675344436,13.37894989,231.98,231.91,13.37894989]
[1732675345562,14.67214989,231.98,231.91,13.37894989]
[1732675346137,1.2932,231.98,231.91,13.37894989]
[1732675346360,1.2932,231.98,231.92,13.37894989]
[1732675350071,1.2931,232.0,231.92,13.37894989]
[1732675350365,13.37894989,232.01,231.94,13.37894989]
[1732675350761,14.67194989,232.01,231.94,13.37894989]
[1732675352167,14.67194989,232.01,231.96,13.37894989]
[1732675352168,1.293,232.01,231.96,13.37894989]
[1732675352471,13.37894989,232.07,232.0,13.37894989]
[1732675352644,3.19883972,232.06,232.0,13.37894989]
[1732675352840,14.67164989,232.07,232.0,13.37894989]
[1732675353041,14.67164989,232.07,231.94,85.87894989]
[1732675353042,13.37894989,232.03,231.94,85.87894989]
[1732675353263,1.2927,232.07,231.94,85.87894989]
[1732675353264,13.37894989,232.01,231.94,85.87894989]
[1732675353464,13.37894989,231.99,231.92,13.37894989]
[1732675354368,14.67214989,231.99,231.92,13.37894989]
[1732675355154,14.67214989,231.99,231.91,20.0]
[1732675355354,13.37894989,231.97,231.9,13.37894989]
[1732675356251,1.2933,231.96,231.9,13.37894989]
[1732675356547,4.49938829,231.96,231.9,13.37894989]
[1732675356753,1.2933,231.96,231.9,13.37894989]
[1732675358366,1.2933,231.96,231.89,20.0]
[1732675358873,3.20657377,231.95,231.88,13.37894989]
[1732675359077,13.37894989,231.97,231.88,13.37894989]
[1732675359249,3.20630178,231.96,231.9,13.37894989]
[1732675360076,14.67214989,231.97,231.9,13.37894989]
[1732675360452,3.20651586,231.96,231.9,13.37894989]
[1732675360850,1.2931,231.99,231.92,13.37894989]
[1732675361056,3.20667641,231.98,231.94,13.37894989]
[1732675361302,14.67204989,232.01,231.94,13.37894989]
[1732675361456,3.20715195,232.0,231.94,13.37894989]
[1732675362460,4.50025195,232.0,231.94,13.37894989]
[1732675362662,13.37894989,231.97,231.9,13.37894989]
[1732675363068,3.85257109,231.96,231.88,13.37894989]
[1732675363261,3.20716788,231.95,231.88,13.37894989]
[1732675363464,3.20716788,231.95,231.9,13.37894989]
[1732675363776,13.37894989,231.99,231.92,13.37894989]
[1732675364077,3.20834312,231.98,231.92,13.37894989]
[1732675364573,3.20834312,231.98,231.97,20.0]
[1732675364767,3.20834312,231.98,231.96,13.37894989]
[1732675364964,1.2927,232.07,231.97,13.37894989]
[1732675365165,3.21010296,232.06,232.0,33.37894989]
[1732675365358,3.21010296,232.05,232.0,33.37894989]
[1732675365560,14.67164989,232.07,232.0,33.37894989]
[1732675365561,3.21010296,232.04,232.0,33.37894989]
[1732675365861,3.21010296,232.03,232.0,33.37894989]
[1732675366051,3.21020064,232.06,232.0,33.37894989]
[1732675366364,3.21020544,232.05,232.0,20.0]
[1732675366676,3.21020544,232.04,231.99,13.37894989]
[1732675366872,14.67164989,232.07,231.99,13.37894989]
[1732675367077,3.21013515,232.06,231.99,13.37894989]
[1732675367250,3.21045455,232.05,231.99,13.37894989]
[1732675367454,17.23480765,232.05,231.97,13.37894989]
[1732675367678,3.21045455,232.04,231.97,13.37894989]
[1732675368562,1.2929,232.03,231.97,13.37894989]
[1732675368790,3.21045455,232.02,231.97,13.37894989]
[1732675369678,3.21045455,232.02,231.98,20.0]
[1732675369679,4.50345455,232.02,231.98,20.0]
[1732675369862,3.21045455,232.01,231.98,20.0]
[1732675370263,16.58940444,232.01,231.93,13.37894989]
[1732675370571,3.21083398,232.0,231.95,13.37894989]
[1732675370885,1.293,232.02,231.95,13.37894989]
[1732675371082,3.21097308,232.01,231.96,13.37894989]